[Event "ESTCC-65 2025"]
[Site "Swidnica"]
[Date "2025.04.08"]
[Round "4.6"]
[White "Zyla, Janusz"]
[Black "Bowmer, Kevin"]
[Result "1-0"]
[Annotator "RC"]
[ECO "B35"]
[WhiteElo "2181"]
[BlackElo "2126"]
[PlyCount "63"]
[EventDate "2025.04.05"]
[EventType "team-tourn"]
[EventCountry "POL"]
[SourceTitle "playchess.com"]
[Source "ChessBase"]
[SourceQuality "1"]
[WhiteTeam "Poland"]
[BlackTeam "England"]
[WhiteTeamCountry "POL"]
[BlackTeamCountry "ENG"]
[TimeControl "40/5400+30:1800+30"]

1. e4 {[%emt 0:00:12]} c5 {[%emt 0:00:07]} 2. Nc3 {[%emt 0:00:16]} g6 {[%emt 0:00:21]} 3. Nf3 {[%emt 0:03:37]} Bg7 {[%emt 0:00:43]} 4. d4 {[%emt 0:00:09]} cxd4 {[%emt 0:00:11]} 5. Nxd4 {[%emt 0:00:10]} Nc6 {[%emt 0:00:28]} 6. Be3 {[%emt 0:00:10]} Nf6 {[%emt 0:00:38]} 7. Bc4 {[%emt 0:00:16]} Qa5 {[%emt 0:03:59]} 8. O-O {[%emt 0:00:40]} d6 {[%emt 0:01:30]} 9. h3 {[%emt 0:00:22]} O-O {[%emt 0:03:47]} 10. a3 {[%emt 0:14:06]} Bd7 {[%emt 0:04:02]} 11. Nb3 {[%emt 0:08:54]} Qc7 {[%emt 0:04:25]} 12. f4 {[%emt 0:00:38]} Na5 {[%emt 0:20:28]} 13. Nxa5 {[%emt 0:00:40]} Qxa5 {[%emt 0:00:05]} 14. Qd3 {[%emt 0:22:57]} a6 {[%emt 0:11:27]} 15. Rae1 {[%emt 0:00:53]} b5 {[%emt 0:12:09]} 16. Bb3 {[%emt 0:00:39]} b4 {[%emt 0:03:27]} 17. axb4 {[%emt 0:00:20]} Qxb4 {[%emt 0:00:34]} 18. e5 {[%emt 0:01:54]} Bf5 {[%emt 0:10:58]} 19. Qe2 {[%emt 0:08:11]} Ne4 {[%emt 0:02:40]} 20. Nd5 {[%emt 0:00:26]} Qb7 {[%emt 0:01:01]} 21. Qf3 {[%emt 0:05:29]} e6 {[%emt 0:10:18]} 22. Nb6 {[%emt 0:13:59]} dxe5 {[%emt 0:06:07]} 23. Nxa8 {[%emt 0:09:16]} exf4 {[%emt 0:00:23]} 24. Bxf4 {[%emt 0:00:23]} Qxa8 {[%emt 0:00:41]} 25. g4 {[%emt 0:00:22]} Bd4+ {[%emt 0:00:16]} 26. Be3 {[%emt 0:02:22]} Qa7 {[%emt 0:00:20]} 27. gxf5 {[%emt 0:00:21]} Nd2 {[%emt 0:01:32]} 28. Qf2 {[%emt 0:01:28]} Rd8 {[%emt 0:01:09]} 29. Bxd4 {[%emt 0:00:34]} Rxd4 {[%emt 0:00:18]} 30. c3 {[%emt 0:00:59]} Nf3+ {[%emt 0:00:55]} 31. Qxf3 {[%emt 0:00:12]} Rf4+ {[%emt 0:01:01]} 32. Qe3 1-0

[Event "ESTCC-65 2025"]
[Site "Swidnica"]
[Date "2025.04.08"]
[Round "4.7"]
[White "Higgie, Charles L"]
[Black "Czajkowski, Ryszard"]
[Result "1-0"]
[Annotator "NA RC"]
[ECO "D88"]
[WhiteElo "1992"]
[BlackElo "1963"]
[PlyCount "52"]
[EventDate "2025.04.05"]
[EventType "team-tourn"]
[EventCountry "POL"]
[SourceTitle "playchess.com"]
[Source "ChessBase"]
[SourceQuality "1"]
[WhiteTeam "England"]
[BlackTeam "Poland"]
[WhiteTeamCountry "ENG"]
[BlackTeamCountry "POL"]
[TimeControl "40/5400+30:1800+30"]

1. d4 {[%emt 0:00:01]} Nf6 {[%emt 0:00:15]} 2. c4 {[%emt 0:00:02]} g6 {[%emt 0:00:09]} 3. Nc3 {[%emt 0:00:06]} d5 {[%emt 0:00:11]} 4. cxd5 {[%emt 0:00:02]} Nxd5 {[%emt 0:00:12]} 5. e4 {[%emt 0:00:04]} Nxc3 {[%emt 0:00:08]} 6. bxc3 {[%emt 0:00:05]} Bg7 {[%emt 0:00:07]} 7. Bc4 {[%emt 0:00:07]} O-O {[%emt 0:01:03]} 8. Ne2 {[%emt 0:00:05]} c5 {[%emt 0:00:27]} 9. O-O {[%emt 0:00:20]} cxd4 {[%emt 0:01:36]} 10. cxd4 {[%emt 0:00:06]} Nc6 {[%emt 0:00:41]} 11. Be3 {[%emt 0:00:09]} Bg4 {[%emt 0:01:48]} 12. f3 {[%emt 0:00:13]} Na5 {[%emt 0:00:50]} 13. Bxf7+ {[%emt 0:02:16]} Rxf7 {[%emt 0:00:06]} 14. fxg4 {[%emt 0:00:06]} Rxf1+ {[%emt 0:00:26]} 15. Qxf1 {[%emt 0:01:01]} Qd7 {[%emt 0:03:25]} 16. h3 {[%emt 0:00:41]} Nc4 {[%emt 0:08:11]} 17. Qc1 {[%emt 0:04:04]} Rc8 {[%emt 0:02:58]} 18. Bf2 {[%emt 0:02:01]} Qe6 {[%emt 0:08:36]} 19. Ng3 {[%emt 0:15:51]} b5 {[%emt 0:11:05]} 20. Qb1 {[%emt 0:12:30]} Rf8 {[%emt 0:04:23]} 21. e5 {[%emt 0:01:31]} Bh6 {[%emt 0:16:06]} 22. Qxb5 {[%emt 0:16:28]} Rxf2 {[%emt 0:06:34]} 23. Kxf2 {[%emt 0:00:20]} Be3+ {[%emt 0:01:14]} 24. Ke2 {[%emt 0:00:40]} Bxd4 {[%emt 0:01:23]} 25. Rf1 {[%emt 0:01:14]} Kg7 {[%emt 0:02:32]} 26. Qb8 {[%emt 0:03:55]} g5 {[%emt 0:09:00]} 1-0

[Event "ESTCC-65 2025"]
[Site "Swidnica"]
[Date "2025.04.08"]
[Round "4.8"]
[White "Krupa, Krzysztof"]
[Black "Reynolds, D Ian W"]
[Result "1-0"]
[Annotator "NA RC"]
[ECO "C44"]
[WhiteElo "1919"]
[BlackElo "1926"]
[PlyCount "53"]
[EventDate "2025.04.05"]
[EventType "team-tourn"]
[EventCountry "POL"]
[SourceTitle "playchess.com"]
[Source "ChessBase"]
[SourceQuality "1"]
[WhiteTeam "Poland"]
[BlackTeam "England"]
[WhiteTeamCountry "POL"]
[BlackTeamCountry "ENG"]
[TimeControl "40/5400+30:1800+30"]

1. e4 {[%emt 0:02:10]} e5 {[%emt 0:00:10]} 2. Nf3 {[%emt 0:00:07]} Nc6 {[%emt 0:00:06]} 3. d4 {[%emt 0:00:24]} exd4 {[%emt 0:00:11]} 4. Bc4 {[%emt 0:00:13]} Bc5 {[%emt 0:02:57]} 5. O-O {[%emt 0:00:26]} d6 {[%emt 0:05:16]} 6. c3 {[%emt 0:00:12]} dxc3 {[%emt 0:03:35]} 7. Qb3 {[%emt 0:01:26]} Qe7 {[%emt 0:03:54]} 8. Nxc3 {[%emt 0:00:43]} Bb6 {[%emt 0:04:02]} 9. Nd5 {[%emt 0:04:24]} Qd7 {[%emt 0:00:37]} 10. Qc3 {[%emt 0:03:17]} f6 {[%emt 0:02:25]} 11. a4 {[%emt 0:11:43]} Ne5 {[%emt 0:04:45]} 12. a5 {[%emt 0:22:00]} Nxc4 {[%emt 0:08:26]} 13. axb6 {[%emt 0:01:32]} Nxb6 {[%emt 0:15:13]} 14. Nxc7+ {[%emt 0:00:25]} Kd8 {[%emt 0:02:28]} 15. Nxa8 {[%emt 0:01:31]} Nxa8 {[%emt 0:00:07]} 16. Rd1 {[%emt 0:04:36]} Nc7 {[%emt 0:01:31]} 17. Bf4 {[%emt 0:07:18]} Nb5 {[%emt 0:02:56]} 18. Qb4 {[%emt 0:01:57]} a6 {[%emt 0:09:59]} 19. Bxd6 {[%emt 0:06:48]} Ke8 {[%emt 0:00:09]} 20. e5 {[%emt 0:02:01]} Qf7 {[%emt 0:09:00]} 21. exf6 {[%emt 0:03:24]} gxf6 {[%emt 0:00:22]} 22. Re1+ {[%emt 0:06:23]} Be6 {[%emt 0:00:22]} 23. Rxe6+ {[%emt 0:07:40]} Qxe6 {[%emt 0:00:09]} 24. Re1 {[%emt 0:00:03]} Qxe1+ {[%emt 0:00:08]} 25. Qxe1+ {[%emt 0:01:04]} Kd7 {[%emt 0:00:11]} 26. Bf8 {[%emt 0:01:04]} h6 {[%emt 0:00:51]} 27. Qe4 1-0

[Event "ESTCC-65 2025"]
[Site "Swidnica"]
[Date "2025.04.08"]
[Round "4.9"]
[White "Sandner, Gunter"]
[Black "Rooze, Jan"]
[Result "1-0"]
[Annotator "RC"]
[ECO "A46"]
[WhiteElo "2243"]
[BlackElo "2198"]
[PlyCount "141"]
[EventDate "2025.04.05"]
[EventType "team-tourn"]
[EventCountry "POL"]
[SourceTitle "playchess.com"]
[Source "ChessBase"]
[SourceQuality "1"]
[WhiteTeam "Germany"]
[BlackTeam "Belgium"]
[WhiteTeamCountry "GER"]
[BlackTeamCountry "BEL"]
[TimeControl "40/5400+30:1800+30"]

1. d4 {[%emt 0:00:05]} Nf6 {[%emt 0:00:06]} 2. Nf3 {[%emt 0:00:31]} e6 {[%emt 0:00:08]} 3. c4 {[%emt 0:00:49]} d5 {[%emt 0:00:25]} 4. g3 {[%emt 0:00:18]} Bb4+ {[%emt 0:00:56]} 5. Bd2 {[%emt 0:02:05]} Be7 {[%emt 0:01:34]} 6. Bg2 {[%emt 0:00:33]} O-O {[%emt 0:00:32]} 7. O-O {[%emt 0:00:45]} c6 {[%emt 0:03:24]} 8. Qc2 {[%emt 0:02:21]} b6 {[%emt 0:02:41]} 9. Rd1 {[%emt 0:06:43]} Ba6 {[%emt 0:07:05]} 10. Ne5 {[%emt 0:08:40]} Nfd7 {[%emt 0:01:44]} 11. cxd5 {[%emt 0:06:21]} cxd5 {[%emt 0:00:53]} 12. e4 {[%emt 0:10:18]} Nf6 {[%emt 0:03:19]} 13. Nc3 {[%emt 0:05:47]} Bb7 {[%emt 0:00:31]} 14. exd5 {[%emt 0:02:43]} Nxd5 {[%emt 0:04:22]} 15. a3 {[%emt 0:08:39]} a6 {[%emt 0:05:34]} 16. Re1 {[%emt 0:09:05]} Ra7 {[%emt 0:04:37]} 17. Rac1 {[%emt 0:01:06]} Nf6 {[%emt 0:05:40]} 18. Be3 {[%emt 0:03:29]} Bxg2 {[%emt 0:00:32]} 19. Kxg2 {[%emt 0:00:02]} Nd5 {[%emt 0:07:02]} 20. Qb3 {[%emt 0:04:06]} Nxe3+ {[%emt 0:06:31]} 21. Rxe3 {[%emt 0:01:31]} Bg5 {[%emt 0:09:02]} 22. f4 {[%emt 0:00:10]} Be7 {[%emt 0:00:12]} 23. Rd3 {[%emt 0:04:29]} Bd6 {[%emt 0:06:09]} 24. Ne4 {[%emt 0:01:52]} Rc7 {[%emt 0:02:14]} 25. Rxc7 {[%emt 0:01:12]} Bxc7 {[%emt 0:01:38]} 26. Ng5 {[%emt 0:02:48]} Qd5+ {[%emt 0:06:43]} 27. Qxd5 {[%emt 0:00:40]} exd5 {[%emt 0:00:10]} 28. Rc3 {[%emt 0:01:41]} Bd6 {[%emt 0:00:48]} 29. Ngf3 {[%emt 0:03:23]} Re8 {[%emt 0:01:37]} 30. Kf2 {[%emt 0:00:49]} f6 {[%emt 0:05:28]} 31. Ng4 {[%emt 0:01:05]} Rd8 {[%emt 0:05:34]} 32. Ne3 {[%emt 0:00:18]} Bf8 {[%emt 0:00:16]} 33. Rc7 {[%emt 0:00:46]} b5 {[%emt 0:01:55]} 34. Ke2 {[%emt 0:01:15]} b4 {[%emt 0:04:29]} 35. a4 {[%emt 0:01:21]} Bd6 {[%emt 0:01:14]} 36. Ra7 {[%emt 0:01:23]} b3 {[%emt 0:00:34]} 37. Rb7 {[%emt 0:00:56]} Nc6 {[%emt 0:00:21]} 38. Rxb3 {[%emt 0:01:02]} Bb4 {[%emt 0:00:32]} 39. Nc2 {[%emt 0:01:28]} a5 {[%emt 0:00:10]} 40. Nxb4 {[%emt 0:00:00]} Nxb4 {[%emt 0:00:00]} 41. Rc3 {[%emt 0:01:46]} Rb8 {[%emt 0:01:31]} 42. Rc5 {[%emt 0:06:21]} Na2 {[%emt 0:04:17]} 43. Rb5 {[%emt 0:00:57]} Rc8 {[%emt 0:01:53]} 44. Rxd5 {[%emt 0:02:29]} Rc2+ {[%emt 0:01:09]} 45. Ke3 {[%emt 0:00:48]} Rxb2 {[%emt 0:02:32]} 46. Rxa5 {[%emt 0:01:05]} Rb3+ {[%emt 0:02:27]} 47. Kf2 {[%emt 0:07:11]} Rb2+ {[%emt 0:00:38]} 48. Kf1 {[%emt 0:00:22]} Nc3 {[%emt 0:05:22]} 49. d5 {[%emt 0:02:49]} Ne4 {[%emt 0:04:35]} 50. Ra8+ {[%emt 0:01:07]} Kf7 {[%emt 0:00:08]} 51. Ra7+ {[%emt 0:00:02]} Kg8 {[%emt 0:01:48]} 52. Re7 {[%emt 0:04:42]} Rf2+ {[%emt 0:02:50]} 53. Ke1 {[%emt 0:00:28]} Rxf3 {[%emt 0:00:08]} 54. Rxe4 {[%emt 0:00:07]} Rd3 {[%emt 0:00:06]} 55. a5 {[%emt 0:00:23]} Rxd5 {[%emt 0:00:12]} 56. Ra4 {[%emt 0:00:03]} Kf7 {[%emt 0:03:37]} 57. a6 {[%emt 0:01:00]} Rd8 {[%emt 0:00:06]} 58. a7 {[%emt 0:01:46]} Ra8 {[%emt 0:00:06]} 59. Ra6 {[%emt 0:01:07]} Ke7 {[%emt 0:00:34]} 60. Ke2 {[%emt 0:00:05]} Kd7 {[%emt 0:00:23]} 61. Ke3 {[%emt 0:00:10]} Kc7 {[%emt 0:00:28]} 62. Ke4 {[%emt 0:00:42]} Kb7 {[%emt 0:00:34]} 63. Re6 {[%emt 0:00:52]} Rg8 {[%emt 0:03:55]} 64. Re7+ {[%emt 0:00:18]} Ka8 {[%emt 0:00:19]} 65. Kf5 {[%emt 0:02:13]} g5 {[%emt 0:01:13]} 66. Kxf6 {[%emt 0:00:53]} gxf4 {[%emt 0:00:28]} 67. gxf4 {[%emt 0:00:01]} h5 {[%emt 0:01:13]} 68. Rg7 {[%emt 0:04:32]} Rh8 {[%emt 0:01:11]} 69. f5 {[%emt 0:00:26]} h4 {[%emt 0:00:12]} 70. Ke7 {[%emt 0:00:20]} h3 {[%emt 0:00:30]} 71. Rg3 {[%emt 0:00:45]} 1-0

[Event "ESTCC-65 2025"]
[Site "Swidnica"]
[Date "2025.04.08"]
[Round "4.10"]
[White "Goormachtigh, Johan"]
[Black "Kyas, Juergen"]
[Result "1/2-1/2"]
[Annotator "RC"]
[ECO "D86"]
[WhiteElo "2207"]
[BlackElo "2168"]
[PlyCount "102"]
[EventDate "2025.04.05"]
[EventType "team-tourn"]
[EventCountry "POL"]
[SourceTitle "playchess.com"]
[Source "ChessBase"]
[SourceQuality "1"]
[WhiteTeam "Belgium"]
[BlackTeam "Germany"]
[WhiteTeamCountry "BEL"]
[BlackTeamCountry "GER"]
[TimeControl "40/5400+30:1800+30"]

1. d4 {[%emt 0:00:13]} Nf6 {[%emt 0:00:05]} 2. c4 {[%emt 0:00:25]} g6 {[%emt 0:00:04]} 3. Nc3 {[%emt 0:00:32]} d5 {[%emt 0:00:10]} 4. cxd5 {[%emt 0:00:47]} Nxd5 {[%emt 0:00:03]} 5. e4 {[%emt 0:00:10]} Nxc3 {[%emt 0:00:04]} 6. bxc3 {[%emt 0:00:07]} Bg7 {[%emt 0:00:15]} 7. Bc4 {[%emt 0:01:24]} c5 {[%emt 0:00:54]} 8. Ne2 {[%emt 0:00:07]} Nc6 {[%emt 0:00:19]} 9. Be3 {[%emt 0:00:10]} O-O {[%emt 0:00:57]} 10. O-O {[%emt 0:00:22]} Bg4 {[%emt 0:00:08]} 11. f3 {[%emt 0:01:22]} Bd7 {[%emt 0:00:04]} 12. Rb1 {[%emt 0:06:46]} Rc8 {[%emt 0:05:10]} 13. Bd3 {[%emt 0:04:22]} cxd4 {[%emt 0:08:22]} 14. cxd4 {[%emt 0:00:27]} Na5 {[%emt 0:01:14]} 15. Qd2 {[%emt 0:10:48]} a6 {[%emt 0:11:45]} 16. Rfc1 {[%emt 0:12:07]} b5 {[%emt 0:01:19]} 17. Rxc8 {[%emt 0:19:42]} Bxc8 {[%emt 0:00:04]} 18. Qb4 {[%emt 0:02:38]} e6 {[%emt 0:11:30]} 19. a4 {[%emt 0:03:55]} Nc6 {[%emt 0:28:15]} 20. Qc3 {[%emt 0:01:46]} Bd7 {[%emt 0:03:12]} 21. axb5 {[%emt 0:00:13]} axb5 {[%emt 0:00:01]} 22. Bxb5 {[%emt 0:01:11]} Qa8 {[%emt 0:00:57]} 23. Bd3 {[%emt 0:08:15]} Rc8 {[%emt 0:08:35]} 24. Qd2 {[%emt 0:12:57]} Qa3 {[%emt 0:03:26]} 25. Bb5 {[%emt 0:04:04]} Rb8 {[%emt 0:01:18]} 26. Qd3 {[%emt 0:00:29]} Qa5 {[%emt 0:05:27]} 27. Bxc6 {[%emt 0:01:00]} Rxb1+ {[%emt 0:00:04]} 28. Qxb1 {[%emt 0:00:06]} Bxc6 {[%emt 0:00:08]} 29. Qb8+ {[%emt 0:00:59]} Bf8 {[%emt 0:00:02]} 30. Kf2 {[%emt 0:00:08]} Qa8 {[%emt 0:02:24]} 31. Qxa8 {[%emt 0:00:54]} Bxa8 {[%emt 0:00:02]} 32. Bf4 {[%emt 0:02:08]} f6 {[%emt 0:00:38]} 33. g4 {[%emt 0:00:27]} Kf7 {[%emt 0:00:28]} 34. h4 {[%emt 0:00:14]} Bb7 {[%emt 0:02:25]} 35. Bd2 {[%emt 0:01:39]} Bc6 {[%emt 0:02:43]} 36. Bc3 {[%emt 0:01:53]} Bh6 {[%emt 0:01:01]} 37. Bb4 {[%emt 0:01:11]} Bb7 {[%emt 0:01:16]} 38. Bd6 {[%emt 0:00:33]} Bd2 {[%emt 0:00:37]} 39. Bf4 {[%emt 0:00:45]} Bb4 {[%emt 0:00:27]} 40. Be3 {[%emt 0:00:00]} Ba6 {[%emt 0:00:00]} 41. Nf4 {[%emt 0:02:18]} Bd6 {[%emt 0:02:34]} 42. Nh3 {[%emt 0:01:42]} Bc4 {[%emt 0:01:53]} 43. Bf4 {[%emt 0:01:45]} Bb4 {[%emt 0:00:33]} 44. e5 {[%emt 0:04:04]} Bc3 {[%emt 0:03:18]} 45. Ke3 {[%emt 0:03:21]} f5 {[%emt 0:03:26]} 46. Bg3 {[%emt 0:03:12]} Bb2 {[%emt 0:01:27]} 47. Be1 {[%emt 0:01:08]} Kg7 {[%emt 0:04:11]} 48. Bd2 {[%emt 0:00:49]} Kf7 {[%emt 0:00:38]} 49. Nf4 {[%emt 0:01:15]} Ba3 {[%emt 0:02:29]} 50. Nd3 {[%emt 0:03:56]} Ke8 {[%emt 0:01:55]} 51. Bb4 {[%emt 0:08:56]} Bxd3 {[%emt 0:00:24]} 1/2-1/2

[Event "ESTCC-65 2025"]
[Site "Swidnica"]
[Date "2025.04.08"]
[Round "4.11"]
[White "Jahnel, Guenther"]
[Black "Stuer, Marc"]
[Result "1-0"]
[Annotator "RC"]
[ECO "A80"]
[WhiteElo "2148"]
[BlackElo "2038"]
[PlyCount "71"]
[EventDate "2025.04.05"]
[EventType "team-tourn"]
[EventCountry "POL"]
[SourceTitle "playchess.com"]
[Source "ChessBase"]
[SourceQuality "1"]
[WhiteTeam "Germany"]
[BlackTeam "Belgium"]
[WhiteTeamCountry "GER"]
[BlackTeamCountry "BEL"]
[TimeControl "40/5400+30:1800+30"]

1. d4 {[%emt 0:00:05]} f5 {[%emt 0:00:08]} 2. Nf3 {[%emt 0:00:37]} Nf6 {[%emt 0:00:05]} 3. g3 {[%emt 0:00:22]} g6 {[%emt 0:00:06]} 4. Bg2 {[%emt 0:00:17]} Bg7 {[%emt 0:00:03]} 5. O-O {[%emt 0:00:21]} O-O {[%emt 0:00:05]} 6. c4 {[%emt 0:00:45]} d6 {[%emt 0:00:17]} 7. Nc3 {[%emt 0:01:13]} Qe8 {[%emt 0:00:27]} 8. Nd5 {[%emt 0:01:16]} Na6 {[%emt 0:01:23]} 9. Nxf6+ {[%emt 0:04:39]} Bxf6 {[%emt 0:00:17]} 10. Bh6 {[%emt 0:05:05]} Bg7 {[%emt 0:00:45]} 11. Bxg7 {[%emt 0:05:28]} Kxg7 {[%emt 0:00:10]} 12. Qd2 {[%emt 0:03:00]} c5 {[%emt 0:06:21]} 13. Qc3 {[%emt 0:06:51]} Kg8 {[%emt 0:01:11]} 14. e4 {[%emt 0:05:55]} fxe4 {[%emt 0:23:39]} 15. Ng5 {[%emt 0:01:53]} cxd4 {[%emt 0:17:22]} 16. Qxd4 {[%emt 0:01:17]} Nc5 {[%emt 0:09:01]} 17. b4 {[%emt 0:21:08]} Nd3 {[%emt 0:04:25]} 18. Qxe4 {[%emt 0:07:10]} Nxb4 {[%emt 0:01:33]} 19. a3 {[%emt 0:12:27]} Nc6 {[%emt 0:01:52]} 20. Rfe1 {[%emt 0:01:38]} h6 {[%emt 0:05:31]} 21. Ne6 {[%emt 0:05:34]} Bxe6 {[%emt 0:01:07]} 22. Qxe6+ {[%emt 0:00:02]} Kg7 {[%emt 0:05:51]} 23. Rab1 {[%emt 0:01:05]} Rf6 {[%emt 0:04:21]} 24. Qe3 {[%emt 0:02:34]} b6 {[%emt 0:04:37]} 25. f4 {[%emt 0:01:22]} Rc8 {[%emt 0:01:05]} 26. Rbd1 {[%emt 0:02:07]} Rc7 {[%emt 0:02:36]} 27. Qc3 {[%emt 0:00:49]} Qd7 {[%emt 0:01:29]} 28. Bd5 {[%emt 0:01:28]} Na5 {[%emt 0:02:45]} 29. Re6 {[%emt 0:01:53]} Nxc4 {[%emt 0:02:36]} 30. Rxf6 {[%emt 0:00:25]} exf6 {[%emt 0:00:24]} 31. Bxc4 {[%emt 0:00:25]} b5 {[%emt 0:00:15]} 32. Bxb5 {[%emt 0:01:57]} Qe7 {[%emt 0:01:37]} 33. Qd4 {[%emt 0:01:57]} Rc2 {[%emt 0:00:42]} 34. Bd3 {[%emt 0:00:35]} Ra2 {[%emt 0:00:44]} 35. Qe4 {[%emt 0:00:59]} Qf7 {[%emt 0:01:05]} 36. Bc4 1-0

[Event "ESTCC-65 2025"]
[Site "Swidnica"]
[Date "2025.04.08"]
[Round "4.12"]
[White "Van Herck, Marcel"]
[Black "Topchii, Gennadii"]
[Result "1-0"]
[Annotator "NA RC"]
[ECO "B40"]
[WhiteElo "1962"]
[BlackElo "2012"]
[PlyCount "71"]
[EventDate "2025.04.05"]
[EventType "team-tourn"]
[EventCountry "POL"]
[SourceTitle "playchess.com"]
[Source "ChessBase"]
[SourceQuality "1"]
[WhiteTeam "Belgium"]
[BlackTeam "Germany"]
[WhiteTeamCountry "BEL"]
[BlackTeamCountry "GER"]
[TimeControl "40/5400+30:1800+30"]

1. e4 {[%emt 0:00:09]} c5 {[%emt 0:00:16]} 2. Nf3 {[%emt 0:00:10]} e6 {[%emt 0:00:09]} 3. d4 {[%emt 0:00:05]} cxd4 {[%emt 0:00:09]} 4. Nxd4 {[%emt 0:00:05]} Bc5 {[%emt 0:00:12]} 5. Nb3 {[%emt 0:00:21]} Bb6 {[%emt 0:02:47]} 6. Nc3 {[%emt 0:04:43]} Ne7 {[%emt 0:00:17]} 7. Bf4 {[%emt 0:04:41]} O-O {[%emt 0:00:18]} 8. Bd6 {[%emt 0:05:04]} Nbc6 {[%emt 0:00:51]} 9. Qd2 {[%emt 0:01:31]} f5 {[%emt 0:06:01]} 10. e5 {[%emt 0:02:42]} Bc7 {[%emt 0:00:43]} 11. f4 {[%emt 0:01:50]} g5 {[%emt 0:03:14]} 12. Bxc7 {[%emt 0:03:49]} Qxc7 {[%emt 0:00:02]} 13. g3 {[%emt 0:00:13]} a6 {[%emt 0:06:02]} 14. O-O-O {[%emt 0:03:17]} b5 {[%emt 0:00:08]} 15. Bg2 {[%emt 0:02:36]} Rb8 {[%emt 0:01:06]} 16. h4 {[%emt 0:04:52]} g4 {[%emt 0:00:23]} 17. Qd6 {[%emt 0:00:08]} Qxd6 {[%emt 0:07:02]} 18. Rxd6 {[%emt 0:00:09]} Rb7 {[%emt 0:00:14]} 19. Rhd1 {[%emt 0:02:03]} Rc7 {[%emt 0:00:15]} 20. R1d2 {[%emt 0:08:08]} Kf7 {[%emt 0:00:45]} 21. a4 {[%emt 0:08:54]} b4 {[%emt 0:08:13]} 22. Ne2 {[%emt 0:00:24]} Nb8 {[%emt 0:01:42]} 23. Rb6 {[%emt 0:02:53]} Nec6 {[%emt 0:00:43]} 24. Ned4 {[%emt 0:01:50]} Bb7 {[%emt 0:01:02]} 25. Nxc6 {[%emt 0:01:09]} Nxc6 {[%emt 0:01:06]} 26. Nc5 {[%emt 0:02:00]} Bc8 {[%emt 0:00:41]} 27. Bxc6 {[%emt 0:01:17]} dxc6 {[%emt 0:01:00]} 28. Rxb4 {[%emt 0:00:59]} Ke7 {[%emt 0:00:19]} 29. a5 {[%emt 0:00:51]} Rd8 {[%emt 0:04:15]} 30. Rxd8 {[%emt 0:00:32]} Kxd8 {[%emt 0:00:01]} 31. Rb6 {[%emt 0:00:20]} Ke7 {[%emt 0:00:37]} 32. c3 {[%emt 0:01:28]} Kd8 {[%emt 0:03:10]} 33. Kc2 {[%emt 0:00:32]} Ke7 {[%emt 0:01:47]} 34. Kd3 {[%emt 0:00:46]} Kd8 {[%emt 0:00:45]} 35. Kc4 {[%emt 0:00:26]} Ke7 {[%emt 0:00:07]} 36. b4 {[%emt 0:01:26]} 1-0

[Event "ESTCC-65 2025"]
[Site "Swidnica"]
[Date "2025.04.08"]
[Round "4.13"]
[White "Maier, Christian"]
[Black "Westerinen, Heikki M.J."]
[Result "1/2-1/2"]
[Annotator "RC"]
[ECO "C10"]
[WhiteElo "2233"]
[BlackElo "2209"]
[PlyCount "117"]
[EventDate "2025.04.05"]
[EventType "team-tourn"]
[EventCountry "POL"]
[SourceTitle "playchess.com"]
[Source "ChessBase"]
[SourceQuality "1"]
[WhiteTeam "Germany"]
[BlackTeam "Finland"]
[WhiteTeamCountry "GER"]
[BlackTeamCountry "FIN"]
[TimeControl "40/5400+30:1800+30"]

1. e4 {[%emt 0:00:38]} e6 {[%emt 0:00:32]} 2. d4 {[%emt 0:00:39]} d5 {[%emt 0:00:10]} 3. Nc3 {[%emt 0:00:16]} dxe4 {[%emt 0:02:25]} 4. Nxe4 {[%emt 0:00:13]} Bd7 {[%emt 0:00:10]} 5. Nf3 {[%emt 0:00:39]} Bc6 {[%emt 0:00:08]} 6. Bd3 {[%emt 0:00:10]} Nd7 {[%emt 0:00:11]} 7. Bf4 {[%emt 0:02:16]} Ngf6 {[%emt 0:11:48]} 8. Nxf6+ {[%emt 0:00:47]} Nxf6 {[%emt 0:03:54]} 9. O-O {[%emt 0:01:59]} Bxf3 {[%emt 0:09:32]} 10. Qxf3 {[%emt 0:00:10]} c6 {[%emt 0:00:13]} 11. c3 {[%emt 0:01:03]} Qd5 {[%emt 0:02:21]} 12. Qxd5 {[%emt 0:05:40]} Nxd5 {[%emt 0:04:00]} 13. Bd2 {[%emt 0:00:23]} O-O-O {[%emt 0:00:34]} 14. Rfd1 {[%emt 0:05:17]} Be7 {[%emt 0:02:48]} 15. a4 {[%emt 0:01:40]} c5 {[%emt 0:06:03]} 16. dxc5 {[%emt 0:02:13]} Bxc5 {[%emt 0:00:15]} 17. Be2 {[%emt 0:03:10]} e5 {[%emt 0:06:58]} 18. b4 {[%emt 0:04:46]} Be7 {[%emt 0:00:35]} 19. Rab1 {[%emt 0:03:49]} f5 {[%emt 0:03:25]} 20. c4 {[%emt 0:04:01]} Nf4 {[%emt 0:01:30]} 21. Bf1 {[%emt 0:17:53]} Ne6 {[%emt 0:08:06]} 22. a5 Rd7 23. Bc3 {[%emt 0:03:26]} Nd4 24. Bxd4 Rxd4 {[%emt 0:05:57]} 25. Rxd4 exd4 26. Bd3 g6 27. c5 a6 28. Kf1 {[%emt 0:02:15]} Bg5 {[%emt 0:03:40]} 29. Ke2 {[%emt 0:05:16]} Re8+ 30. Kd1 Kc7 31. Kc2 Bh4 {[%emt 0:09:41]} 32. Rf1 Bg5 33. Rd1 Bh4 34. g3 Bf6 35. Kb3 {[%emt 0:05:10]} Re7 36. Kc4 Kc6 37. Bf1 Kc7 38. Kd3 Kc6 39. Kc4 Kc7 40. Bd3 Re8 {[%emt 0:00:00]} 41. Rb1 {[%emt 0:05:35]} Re7 {[%emt 0:17:31]} 42. Rh1 {[%emt 0:08:06]} Re5 {[%emt 0:09:02]} 43. h4 {[%emt 0:01:10]} h5 {[%emt 0:00:50]} 44. Rb1 {[%emt 0:01:05]} Re7 {[%emt 0:00:36]} 45. b5 {[%emt 0:10:40]} axb5+ {[%emt 0:00:19]} 46. Rxb5 {[%emt 0:00:33]} Re1 {[%emt 0:08:49]} 47. Rb1 {[%emt 0:13:41]} Re5 {[%emt 0:05:03]} 48. Rb6 {[%emt 0:04:36]} Be7 {[%emt 0:00:12]} 49. Kxd4 {[%emt 0:00:46]} Rxc5 {[%emt 0:00:39]} 50. Re6 {[%emt 0:01:57]} Bd6 {[%emt 0:00:25]} 51. Rxg6 {[%emt 0:03:00]} Rxa5 {[%emt 0:00:25]} 52. f4 {[%emt 0:02:15]} Bb4 {[%emt 0:06:14]} 53. Rg5 {[%emt 0:00:43]} Be1 {[%emt 0:00:19]} 54. Ke3 {[%emt 0:00:18]} Ra3 {[%emt 0:04:09]} 55. Ke2 {[%emt 0:00:26]} b5 {[%emt 0:00:31]} 56. Rxh5 {[%emt 0:07:51]} Bxg3 {[%emt 0:00:19]} 57. Rxf5 {[%emt 0:00:05]} Bxh4 {[%emt 0:01:27]} 58. Rxb5 {[%emt 0:00:22]} Kd6 {[%emt 0:00:35]} 59. Rh5 1/2-1/2